bitfinex/quotes_SOLUSD_20211001
["timestamp","ask_amount","ask_price","bid_price","bid_amount"]
[1633109540228,25.58018129,159.28,159.11,26.34901814]
[1633109540427,25.58018129,159.28,159.12,5.77558127]
[1633109540629,25.08018129,159.28,159.13,4.55321909]
[1633109540830,25.08018129,159.28,159.13,33.04223723]
[1633109541228,25.08018129,159.28,159.14,26.34901814]
[1633109541629,79.8923,159.29,159.14,26.34901814]
[1633109541829,79.8923,159.29,159.14,52.53149179]
[1633109542028,79.8923,159.29,159.15,8.11115846]
[1633109542232,79.8923,159.29,159.16,2.14]
[1633109542430,78.4601,159.31,159.16,31.22624036]
[1633109542631,23.11337555,159.3,159.16,31.22624036]
[1633109542830,23.11337555,159.3,159.17,29.08624036]
[1633109544830,78.4601,159.31,159.18,2.14]
[1633109545235,0.03516825,159.39,159.19,65.03857764]
[1633109545432,0.03516825,159.39,159.21,3.5453751]
[1633109545634,118.22056825,159.44,159.22,5.68090147]
[1633109545835,118.22056825,159.44,159.24,2.41883899]
[1633109546035,118.1854,159.44,159.25,7.32324099]
[1633109546232,118.1854,159.44,159.26,5.15934103]
[1633109546433,0.03516825,159.49,159.27,5.6126689]
[1633109546633,0.03516825,159.5,159.29,3.44330519]
[1633109546832,22.82297812,159.5,159.3,2.14]
[1633109547033,0.03516825,159.49,159.3,28.10936254]
[1633109547232,0.03516825,159.49,159.31,33.67090703]
[1633109547433,22.78780987,159.5,159.32,2.14]
[1633109547631,22.78780987,159.5,159.32,28.10936254]
[1633109547832,22.78780987,159.5,159.33,33.67090703]
[1633109548032,22.78780987,159.5,159.34,2.14]
[1633109548231,22.78780987,159.5,159.34,28.10936254]
[1633109548432,22.78780987,159.5,159.35,59.64026957]
[1633109548634,22.78780987,159.5,159.35,75.74718865]
[1633109548831,22.78780987,159.5,159.36,61.78026957]
[1633109549232,22.78780987,159.5,159.37,33.67090703]
[1633109550037,22.78780987,159.5,159.36,2.14]
[1633109550234,0.03516825,159.49,159.36,2.14]
[1633109550435,22.78780987,159.5,159.37,31.79888464]
[1633109550636,2.17516825,159.53,159.37,31.79888464]
[1633109550836,2.17516825,159.53,159.38,25.96936254]
[1633109551037,2.14,159.53,159.38,28.10936254]
[1633109551238,2.17516825,159.57,159.39,31.79888464]
[1633109551436,2.17516825,159.57,159.4,2.14]
[1633109551635,27.23131497,159.56,159.4,44.21628162]
[1633109551835,27.23131497,159.56,159.41,47.90580372]
[1633109552035,4757.11,159.45,159.41,76.01516626]
[1633109552235,4480.66764046,159.45,159.42,48.62080372]
[1633109552436,4480.66764046,159.45,159.43,2.14]
[1633109552638,4480.66764046,159.45,159.43,57.63324718]
[1633109552835,4323.83489957,159.45,159.44,29.52388464]
[1633109553036,4323.83489957,159.45,159.44,57.63324718]
[1633109553235,4276.83939957,159.45,159.44,57.63324718]
[1633109553839,4276.83939957,159.45,159.44,2.14]
[1633109554237,4229.82669957,159.45,159.44,2.14]
[1633109555236,4182.80009957,159.45,159.44,2.14]
[1633109555436,4212.28332199,159.45,159.44,2.14]
[1633109556039,4182.80009957,159.45,159.44,2.14]
[1633109556245,4135.77419957,159.45,159.44,2.14]
[1633109557241,4088.76239957,159.45,159.44,2.14]
[1633109557446,4088.76239957,159.45,159.44,33.46886241]
[1633109557843,23.0,159.44,159.38,31.32886241]
[1633109558043,23.0,159.44,159.39,2.14]
[1633109558244,44.37704677,159.44,159.39,2.14]
[1633109558647,22.97881808,159.44,159.39,2.14]
[1633109559544,4064.71411765,159.45,159.39,2.14]
[1633109559744,21.97212424,159.44,159.39,2.14]
[1633109560745,24.80867191,159.44,159.39,2.14]
[1633109561746,22.15367441,159.44,159.39,2.14]
[1633109564750,4042.49468956,159.45,159.39,2.14]
[1633109565449,4042.49468956,159.45,159.36,2.14]
[1633109565848,0.03516825,159.44,159.36,2.14]
[1633109566048,17.51286394,159.44,159.36,2.14]
[1633109566250,0.03516825,159.43,159.36,2.14]
[1633109567051,17.47769569,159.44,159.36,2.14]
[1633109568049,0.02088,159.43,159.36,2.14]
[1633109568248,0.02088,159.43,159.35,360.29324453]
[1633109568447,0.02088,159.43,159.32,35.49114392]
[1633109568649,0.02088,159.43,159.35,24.6403973]
[1633109568849,0.02088,159.44,159.35,26.7803973]
[1633109569053,4042.49468956,159.45,159.35,26.7803973]
[1633109569252,4042.49468956,159.45,159.35,2.14]
[1633109569452,0.02088,159.44,159.35,2.14]
[1633109569651,4042.49468956,159.45,159.35,2.14]
[1633109570051,78.8836,159.44,159.35,2.14]
[1633109570250,27.89902967,159.43,159.35,2.14]
[1633109570857,27.89902967,159.43,159.35,24.57112472]
[1633109571454,27.89902967,159.43,159.35,2.14]
[1633109572353,27.89902967,159.43,159.35,28.76473036]
[1633109572554,27.89902967,159.43,159.35,2.14]
[1633109572753,27.89902967,159.43,159.33,3.27614209]
[1633109572955,0.02088,159.42,159.33,3.27614209]
[1633109573154,0.02088,159.42,159.3,2.14]
[1633109573155,17.82888,159.42,159.3,2.14]
[1633109573554,17.82888,159.42,159.31,28.34869399]
[1633109574155,17.808,159.42,159.32,10.87951969]
[1633109574354,78.8836,159.44,159.33,8.78588654]
[1633109574556,78.8836,159.44,159.33,10.92588654]
[1633109574756,78.8836,159.44,159.34,5.25176734]
[1633109574958,78.8836,159.44,159.35,28.49427516]
[1633109575356,78.8836,159.44,159.35,30.63427516]
[1633109575556,4042.49468956,159.45,159.35,30.63427516]
[1633109575959,4042.49468956,159.45,159.36,5.08013762]
[1633109576359,4042.49468956,159.45,159.36,8.48885741]
[1633109576757,17.88830474,159.44,159.36,8.48885741]
[1633109576957,17.88830474,159.44,159.36,5.08013762]
[1633109577160,17.88830474,159.44,159.36,8.47831244]
[1633109577359,4042.49468956,159.45,159.35,0.00174544]
[1633109577557,4042.49468956,159.45,159.28,547.42982948]
[1633109577758,4044.63468956,159.45,159.28,545.28982948]
[1633109577962,4044.63468956,159.45,159.26,2.14]
[1633109577963,0.02088,159.44,159.26,2.14]
[1633109578158,3.50283226,159.43,159.26,2.14]
[1633109578359,23.47072388,159.42,159.26,2.14]
[1633109578559,0.02088,159.41,159.26,2.14]
[1633109578959,2.14,159.4,159.25,27.35086292]
[1633109579160,23.13705305,159.39,159.25,27.35086292]
[1633109579560,23.13705305,159.39,159.23,16.40090225]
[1633109580162,23.13705305,159.39,159.23,2.14]
[1633109580362,2.14,159.38,159.19,28.76620208]
[1633109580564,2.14,159.38,159.19,5.35401177]
[1633109580565,2.16088,159.38,159.19,5.35401177]
[1633109580761,195.79368,159.38,159.19,5.35401177]
[1633109580961,0.02088,159.37,159.19,5.35401177]
[1633109581163,2.14,159.36,159.19,5.35401177]
[1633109581361,0.02088,159.35,159.18,20.46916832]
[1633109582169,23.43446227,159.35,159.19,25.6260638]
[1633109582369,23.43446227,159.35,159.19,30.98736492]
[1633109582564,23.41358227,159.35,159.19,30.98736492]
[1633109582965,23.41358227,159.35,159.19,57.77497616]
[1633109583364,23.41358227,159.35,159.19,26.78761124]
[1633109584465,23.41358227,159.35,159.2,21.80727792]
[1633109585269,23.41358227,159.35,159.19,26.78761124]
[1633109585469,2.16088,159.34,159.15,2.14]
[1633109585867,2.16088,159.34,159.15,10.74904902]
[1633109586068,2.16088,159.34,159.15,60.94885057]
[1633109586268,2.16088,159.34,159.16,22.99562019]
[1633109586869,2.16088,159.34,159.16,49.78323143]
[1633109589872,4042.49468956,159.3,159.16,49.78323143]
[1633109590074,4042.49468956,159.3,159.17,2.14]
[1633109590475,3995.41558956,159.3,159.18,50.22068155]
[1633109590673,3995.41558956,159.3,159.19,2.16088]
[1633109590873,3995.41558956,159.3,159.2,0.02088]
[1633109591073,3995.41558956,159.3,159.21,2.14]
[1633109591272,3995.41558956,159.3,159.22,26.80905546]
[1633109591477,3948.33648956,159.3,159.22,28.94905546]
[1633109591675,3948.33648956,159.3,159.22,53.80569022]
[1633109591874,3948.33648956,159.3,159.22,81.82107924]
[1633109592275,3948.33648956,159.3,159.23,8.09149061]
[1633109592475,3901.27888956,159.3,159.24,2.14]
[1633109592678,3901.27888956,159.3,159.25,28.66868539]
[1633109592877,3901.27888956,159.3,159.26,2.14]
[1633109593478,3854.21738956,159.3,159.26,2.14]
[1633109594077,3854.21738956,159.3,159.26,32.69833346]
[1633109594577,3807.15588956,159.3,159.26,32.69833346]
[1633109595579,3760.08998956,159.3,159.26,32.69833346]
[1633109596579,3713.01768956,159.3,159.26,2.14]
[1633109598193,3713.01768956,159.3,159.23,2.14]
[1633109598382,3739.98338274,159.3,159.23,2.14]
[1633109599581,3665.94578956,159.3,159.23,2.14]
[1633109599783,3665.94578956,159.3,159.24,28.58106254]
[1633109599982,3665.94578956,159.3,159.25,2.14]
[1633109600183,3665.94578956,159.3,159.28,543.39151235]
[1633109600585,3618.87228956,159.3,159.28,543.39151235]
[1633109601584,73.02998,159.39,159.28,543.39151235]
[1633109602583,24.76643591,159.38,159.28,543.39151235]
[1633109603384,24.76643591,159.38,159.23,32.69833346]
[1633109603785,24.76643591,159.38,159.23,83.28836239]
[1633109604385,24.76643591,159.38,159.23,453.57429378]
[1633109604585,0.02088,159.37,159.23,453.57429378]
[1633109605985,24.76643591,159.38,159.23,453.57429378]
[1633109606986,24.76643591,159.38,159.23,431.59046072]
[1633109607202,0.02088,159.37,159.23,370.28593139]
[1633109607385,2.14,159.36,159.19,2.14]
[1633109607589,0.02088,159.35,159.19,2.14]
[1633109607787,2.14,159.34,159.19,2.14]
[1633109607991,21.84134102,159.33,159.19,2.14]
[1633109608189,0.02088,159.32,159.19,2.14]
[1633109608386,0.02088,159.29,159.14,2.14]
[1633109608587,0.02088,159.3,159.14,2.14]
[1633109609186,24.78731591,159.3,159.15,22.22827415]
[1633109609389,0.02088,159.29,159.15,22.22827415]
[1633109610588,0.02088,159.29,159.15,54.40356467]
[1633109610991,24.76643591,159.3,159.15,54.40356467]
[1633109611187,24.76643591,159.3,159.16,8.51684528]
[1633109611588,24.76643591,159.3,159.15,54.40356467]
[1633109611788,24.76643591,159.3,159.16,26.87286254]
[1633109612889,24.76643591,159.3,159.16,32.23251312]
[1633109614991,24.76643591,159.3,159.16,26.87286254]
[1633109616093,24.76643591,159.3,159.15,47.4409713]
[1633109617793,27.40643591,159.3,159.16,2.64]
[1633109618894,27.40643591,159.3,159.16,26.65430691]
[1633109619693,2.64,159.3,159.16,2.64]
[1633109619897,2.64,159.35,159.16,52.03415019]
[1633109620095,2.66088,159.38,159.17,8.77612656]
[1633109620295,2.66088,159.38,159.21,5.40977857]
[1633109620498,0.02088,159.38,159.22,66.18]
[1633109620695,2.64,159.45,159.23,9.3376676]
[1633109620894,2.64,159.48,159.25,65.94]
[1633109621096,2.64,159.48,159.26,36.99845143]
[1633109621296,2.64,159.48,159.28,5.18441932]
[1633109621498,72.074,159.5,159.29,132.14088]
[1633109621697,72.074,159.5,159.32,65.94]
[1633109621899,72.074,159.5,159.33,2.64]
[1633109622098,72.074,159.5,159.33,25.82431303]
[1633109622297,24.59529979,159.49,159.34,25.76594149]
[1633109622499,24.59529979,159.49,159.35,2.64]
[1633109623100,2.64,159.48,159.35,2.64]
[1633109623501,0.02088,159.47,159.33,41.67885447]
[1633109623703,2.64,159.46,159.29,2.64]
[1633109623901,0.02088,159.45,159.29,2.64]
[1633109624101,2.64,159.44,159.29,2.64]
[1633109624302,0.02088,159.43,159.29,2.64]
[1633109624501,2.66088,159.43,159.3,25.54191483]
[1633109624704,21.99159714,159.42,159.26,2.64]
[1633109624902,2.64,159.41,159.26,2.64]
[1633109625519,74.9575,159.41,159.26,2.64]
[1633109625720,0.02088,159.4,159.27,29.05181254]
[1633109625920,2.64,159.39,159.27,29.05181254]
[1633109626119,24.61617979,159.38,159.27,29.05181254]
[1633109626322,27.25617979,159.38,159.27,29.05181254]
[1633109626520,27.25617979,159.38,159.27,52.23612557]
[1633109626919,27.25617979,159.38,159.27,29.05181254]
[1633109627622,24.59529979,159.38,159.27,29.05181254]
[1633109628022,24.59529979,159.38,159.23,28.3435705]
[1633109629021,24.59529979,159.38,159.24,29.28290003]
[1633109629421,24.61617979,159.38,159.24,29.28290003]
[1633109632021,24.59529979,159.38,159.24,29.28290003]
[1633109632221,24.59529979,159.38,159.24,57.62647053]
[1633109632622,190.5532,159.4,159.24,82.94078356]
[1633109633624,190.5532,159.4,159.25,0.02088]
[1633109633825,190.5532,159.4,159.26,2.13]
[1633109634030,190.5532,159.4,159.26,53.65788353]
[1633109634225,115.6397,159.4,159.27,51.52788353]
[1633109634425,2.13,159.45,159.28,2.13]
[1633109634623,2.13,159.45,159.28,53.65788353]
[1633109634824,2.13,159.45,159.29,50.71148292]
[1633109635025,2.13,159.45,159.29,73.89579595]
[1633109635223,2.13,159.45,159.3,53.65788353]
[1633109635425,115.4488,159.49,159.3,53.65788353]
[1633109635624,115.4488,159.49,159.31,51.52788353]
[1633109635827,2.15088,159.52,159.32,2.13]
[1633109635828,0.02088,159.52,159.32,2.13]
[1633109636025,29.81605349,159.53,159.33,25.44881975]
[1633109636228,29.81605349,159.53,159.34,2.13]
[1633109636426,29.81605349,159.53,159.34,17.12037224]
[1633109636627,29.81605349,159.53,159.34,68.64825577]
[1633109636827,29.81605349,159.53,159.36,26.28633047]
[1633109637025,29.81605349,159.53,159.37,2.13]
[1633109637225,29.81605349,159.53,159.37,53.65788353]
[1633109637424,2.13,159.52,159.37,53.65788353]
[1633109637624,2.13,159.52,159.37,28.3435705]
[1633109638026,2.13,159.52,159.37,51.52788353]
[1633109638426,2.13,159.52,159.39,28.53787514]
[1633109638826,2.13,159.52,159.39,56.88144564]
[1633109640428,0.02088,159.55,159.39,56.88144564]
[1633109640729,2.13,159.55,159.4,2.13]
[1633109640930,2.13,159.59,159.4,2.13]
[1633109641129,2.13,159.59,159.41,51.52788353]
[1633109641330,2.13,159.59,159.42,23.99671829]
[1633109641529,2.13,159.59,159.42,75.52460182]
[1633109641732,2.13,159.59,159.43,51.52788353]
[1633109641929,2.13,159.59,159.44,2.13]
[1633109642130,2.13,159.59,159.44,53.65788353]
[1633109642330,223.5312,159.6,159.45,51.52788353]
[1633109642530,223.5312,159.6,159.46,2.15088]
[1633109642729,223.5312,159.6,159.47,0.02088]
[1633109642930,223.5312,159.6,159.48,2.13]
[1633109643132,223.5312,159.6,159.48,2.15088]
[1633109643330,223.5312,159.6,159.48,67.09469132]
[1633109643529,223.5312,159.6,159.49,49.95343908]
[1633109643730,149.9232,159.6,159.5,31.28137793]
[1633109643929,149.9232,159.6,159.5,82.14842812]
[1633109644130,110.4954,159.65,159.51,50.86705019]
[1633109644334,110.4954,159.65,159.52,2.13]
[1633109644529,110.4954,159.65,159.52,52.99705019]
[1633109645330,0.02088,159.73,159.6,84.0]
[1633109645532,0.09005594,159.85,159.6,84.0]
[1633109645533,0.73088,159.82,159.61,2.13]
[1633109645732,2.13,159.82,159.62,0.0421776]
[1633109645932,2.22005594,159.85,159.63,2.13]
[1633109646132,0.09005594,159.85,159.64,0.0421776]
[1633109646331,0.09005594,159.85,159.65,2.13]
[1633109646532,0.09005594,159.85,159.66,0.0421776]
[1633109646733,0.09005594,159.85,159.67,2.13]
[1633109647132,0.09005594,159.85,159.68,20.63510519]
[1633109647335,0.09005594,159.85,159.69,2.13]
[1633109647532,0.09005594,159.85,159.69,35.35904272]
[1633109647735,2.57193605,159.85,159.69,13.35904272]
[1633109647935,2.13,159.84,159.67,2.13]
[1633109648934,27.33721331,159.83,159.67,2.13]
[1633109650135,2.13,159.82,159.67,2.13]
[1633109650336,23.949,159.82,159.63,2.13]
[1633109650537,22.0420867,159.8,159.63,2.13]
[1633109650737,24.1720867,159.8,159.63,2.13]
[1633109651337,24.1720867,159.8,159.63,29.60533733]
[1633109652536,24.1720867,159.8,159.63,29.64751493]
[1633109653835,24.1720867,159.8,159.63,541.26081661]
[1633109654035,24.1720867,159.8,159.63,541.21863901]
[1633109654739,24.1720867,159.8,159.63,513.74330168]
[1633109655136,24.1720867,159.8,159.63,2.13]
[1633109655338,24.1720867,159.8,159.6,2.13]
[1633109656537,24.1720867,159.8,159.6,28.0800767]
[1633109656938,24.1720867,159.8,159.6,42.89165623]
[1633109657137,24.1720867,159.8,159.61,0.0421776]
[1633109657340,22.0420867,159.8,159.62,2.13]
[1633109657538,22.0420867,159.8,159.63,0.0421776]
[1633109657738,22.0420867,159.8,159.64,2.13]
[1633109657938,22.0420867,159.8,159.64,2.1721776]
[1633109658339,24.1720867,159.8,159.64,2.1721776]
[1633109658738,24.1720867,159.8,159.61,2.13]
[1633109658941,24.1720867,159.8,159.6,0.0421776]
[1633109659138,24.1720867,159.8,159.6,2.13]
[1633109660639,75.6340867,159.8,159.6,2.13]
[1633109661039,139.1740867,159.8,159.6,2.13]
[1633109661440,2.52838663,159.77,159.57,503.69861276]
[1633109661640,139.1740867,159.8,159.55,0.0421776]
[1633109661641,28.7562223,159.75,159.55,0.0421776]
[1633109661840,2.13,159.74,159.55,0.0421776]
[1633109662042,53.592,159.74,159.55,0.0021776]
[1633109662239,21.72848716,159.72,159.51,0.02088]
[1633109662442,0.57134753,159.7,159.47,0.02088]
[1633109662639,24.19850457,159.68,159.47,0.02088]
[1633109662840,2.13,159.67,159.47,0.02088]
[1633109663040,2.13,159.67,159.47,27.48031347]
[1633109663641,2.13,159.67,159.48,2.13]
[1633109664043,24.19850457,159.68,159.49,27.47113403]
[1633109664240,2.13,159.7,159.5,2.15088]
[1633109664441,2.13,159.7,159.51,0.02088]
[1633109664641,2.13,159.75,159.53,0.17084676]
[1633109664843,2.13,159.75,159.54,2.13]
[1633109665042,2.13,159.75,159.55,0.02088]
[1633109665240,22.57601807,159.75,159.56,2.13]
[1633109665440,22.57601807,159.75,159.57,0.02088]
[1633109665641,22.57601807,159.75,159.58,2.13]
[1633109666641,22.57601807,159.75,159.58,29.58025403]
[1633109668043,2.13,159.78,159.58,29.58025403]
[1633109668242,2.13,159.78,159.59,32.20969083]
[1633109668441,2.13,159.78,159.6,2.13]
[1633109668642,2.13,159.78,159.61,0.02088]
[1633109668842,2.13,159.78,159.61,29.60113403]
[1633109669043,24.28586684,159.77,159.62,32.20969083]
[1633109669242,24.28586684,159.77,159.63,2.13]
[1633109669441,24.28586684,159.77,159.63,29.58025403]
[1633109669842,2.13,159.8,159.63,29.58025403]
[1633109670042,2.13,159.8,159.63,61.78994486]
[1633109670244,2.13,159.8,159.64,27.45025403]
[1633109670444,2.13,159.8,159.64,29.58025403]
[1633109670841,29.00172136,159.79,159.64,29.58025403]
[1633109671241,29.00172136,159.79,159.65,6.11210102]
[1633109671643,2.13,159.82,159.66,2.13]
[1633109672042,2.13,159.82,159.67,6.20502509]
[1633109672241,2.13,159.82,159.67,9.6207076]
[1633109672645,26.73570895,159.82,159.68,3.41860128]
[1633109672846,26.73570895,159.82,159.67,9.65789944]
[1633109673046,26.73570895,159.82,159.67,6.20502509]
[1633109673243,26.73570895,159.82,159.67,9.66304787]
[1633109674242,26.73570895,159.82,159.67,6.20502509]
[1633109674844,26.73570895,159.82,159.66,2.13]
[1633109675043,26.73570895,159.82,159.67,6.29564037]
[1633109675242,26.73570895,159.82,159.66,2.13]
[1633109675644,26.73570895,159.82,159.67,6.28355549]
[1633109676645,26.73570895,159.82,159.66,11.88058015]
[1633109676843,26.73570895,159.82,159.67,6.33288237]
[1633109677043,26.73570895,159.82,159.67,9.75753121]
[1633109677644,26.73570895,159.82,159.67,6.33288237]
[1633109678245,26.73570895,159.82,159.65,3.40347751]
[1633109678646,26.73570895,159.82,159.65,9.6721268]
[1633109680048,26.73570895,159.82,159.63,3.42359483]
[1633109680248,26.73570895,159.82,159.63,9.72207044]
[1633109681548,0.02088,159.81,159.63,6.29847561]
[1633109681749,2.13,159.8,159.63,6.29847561]
[1633109681949,26.73012735,159.79,159.63,6.29847561]
[1633109682150,2.13,159.78,159.63,6.29847561]
[1633109685151,2.13,159.78,159.62,9.76027784]
[1633109685553,2.13,159.78,159.63,3.36462568]
[1633109686354,2.13,159.78,159.64,3.369664]
[1633109686552,2.13,159.78,159.63,3.37582379]
[1633109686953,2.13,159.78,159.58,2.15088]
[1633109687153,2.13,159.78,159.59,6.24103748]
[1633109687154,80.05163576,159.77,159.59,6.24103748]
[1633109687354,25.33630723,159.76,159.59,6.24103748]
[1633109687755,25.33630723,159.76,159.55,2.15088]
[1633109687756,43.98196261,159.76,159.56,6.22458427]
[1633109687956,18.64565538,159.75,159.56,6.22458427]
[1633109688155,2.13,159.74,159.55,0.02088]
[1633109688356,21.54647716,159.73,159.55,0.02088]
[1633109688554,2.13,159.72,159.55,0.02088]
[1633109688955,2.13,159.72,159.54,6.14675628]
[1633109689957,2.13,159.72,159.52,6.22864191]
[1633109690357,20.77565538,159.72,159.52,6.22864191]
[1633109690556,52.52565538,159.72,159.52,6.22864191]
[1633109690959,52.52565538,159.72,159.51,0.02088]
[1633109691158,52.52565538,159.72,159.51,2.15088]
[1633109691357,2.13,159.72,159.53,402.02205115]
[1633109691558,21.54647716,159.73,159.54,8.31397797]
[1633109691757,21.54647716,159.73,159.55,6.13663132]
[1633109691957,21.54647716,159.73,159.56,2.15088]
[1633109692156,2.13,159.77,159.57,6.1278149]
[1633109692357,2.13,159.77,159.58,1.65088]
[1633109692558,2.13,159.77,159.59,6.07762707]
[1633109692759,2.13,159.81,159.6,2.15088]
[1633109692957,2.13,159.81,159.61,6.00701113]
[1633109693159,24.76733763,159.8,159.62,2.15088]
[1633109693357,24.76733763,159.8,159.63,6.00305461]
[1633109693560,24.76733763,159.8,159.64,2.15088]
[1633109693758,24.76733763,159.8,159.65,0.02088]
[1633109693958,24.76733763,159.8,159.65,8.1152043]
[1633109694158,24.76733763,159.8,159.65,2.15088]
[1633109694560,24.76733763,159.8,159.65,2.13]
[1633109694760,2.13,159.79,159.62,2.13]
[1633109695560,2.13,159.79,159.63,6.11631843]
[1633109695959,2.13,159.79,159.62,2.13]
[1633109696162,23.588,159.79,159.63,6.11462119]
[1633109696359,23.588,159.79,159.67,506.90052495]
[1633109696558,23.60888,159.79,159.67,500.40052495]
[1633109696761,0.02088,159.78,159.67,446.40052495]
[1633109696958,2.13,159.77,159.58,2.13]
[1633109697159,26.63032098,159.76,159.59,6.18741246]
[1633109697359,2.13,159.75,159.61,399.69716046]
[1633109700165,2.13,159.75,159.58,2.13]
[1633109700363,2.13,159.75,159.59,5.94579369]
[1633109703164,65.67,159.75,159.59,5.94579369]
[1633109703363,147.8615647,159.75,159.56,361.46872768]
[1633109703564,200.25882536,159.75,159.56,361.46872768]
[1633109703764,17.15644165,159.74,159.5,4.95471124]
[1633109703968,78.11638708,159.73,159.49,6.06523099]
[1633109704163,109.32348,159.72,159.47,5.0112331]
[1633109704363,2.97793683,159.71,159.47,7.1412331]
[1633109704563,22.7678165,159.7,159.48,6.06427393]
[1633109704764,2.15088,159.69,159.48,6.06427393]
[1633109704964,0.02088,159.68,159.51,4.95396748]
[1633109705166,2.13,159.69,159.52,2.13]
[1633109705365,2.13,159.69,159.53,5.92490041]
[1633109705965,2.15088,159.69,159.53,5.92490041]
[1633109706169,0.02088,159.68,159.5,5.99468128]
[1633109706365,2.13,159.67,159.5,5.99468128]
[1633109706569,22.92025424,159.66,159.48,6.04043482]
[1633109706767,2.15088,159.65,159.48,6.04043482]
[1633109706971,0.02088,159.64,159.47,4.98114592]
[1633109707168,2.13,159.63,159.46,6.06273217]
[1633109707367,26.53571073,159.62,159.45,5.02127714]
[1633109707569,2.15088,159.61,159.43,6.10392792]
[1633109707768,0.02088,159.6,159.43,6.10392792]
[1633109707968,2.13,159.59,159.43,6.10392792]
[1633109708168,26.92632196,159.58,159.43,6.10392792]
[1633109708369,26.92632196,159.58,159.43,4.60392792]
[1633109710172,2.13,159.59,159.48,393.27072647]
[1633109711572,2.13,159.62,159.48,393.27072647]
[1633109711775,2.13,159.62,159.46,0.02088]
[1633109711974,2.13,159.62,159.45,0.65088]
[1633109712572,31.00137242,159.62,159.45,0.65088]
[1633109713873,31.00137242,159.62,159.42,2.13]
[1633109714075,79.5986,159.61,159.42,2.13]
[1633109714275,2.13,159.6,159.42,2.13]
[1633109714474,29.20867258,159.59,159.42,2.13]
[1633109714673,2.13,159.58,159.42,2.13]
[1633109716878,2.13,159.58,159.41,515.30725444]
[1633109717276,0.02088,159.57,159.41,515.30725444]
[1633109717479,2.13,159.56,159.41,515.30725444]
[1633109717683,23.25990405,159.55,159.41,515.30725444]
[1633109717877,2.13,159.54,159.41,515.30725444]
[1633109719578,23.25990405,159.55,159.41,517.43725444]
[1633109720178,2.13,159.58,159.41,517.43725444]
[1633109720577,2.13,159.58,159.41,538.32160843]
[1633109722178,2.13,159.58,159.41,517.43725444]
[1633109722778,22.00562205,159.57,159.41,517.43725444]
[1633109722979,2.13,159.56,159.41,517.43725444]
[1633109723777,19.429,159.56,159.41,515.30725444]
[1633109724379,0.02088,159.55,159.41,515.30725444]
[1633109724582,29.66212341,159.53,159.41,515.30725444]
[1633109724779,29.68300341,159.53,159.41,515.30725444]
[1633109727983,2.13,159.54,159.41,515.30725444]
[1633109733489,0.02088,159.53,159.41,515.30725444]
[1633109733690,2.13,159.52,159.41,515.30725444]
[1633109733890,21.8221591,159.51,159.41,515.30725444]
[1633109734091,0.02088,159.5,159.41,515.30725444]
[1633109734290,2.13,159.49,159.41,515.30725444]
[1633109734491,21.92857719,159.48,159.3,7.3975096]
[1633109734695,372.06190206,159.41,159.3,7.3975096]
[1633109734892,395.59990206,159.41,159.3,5.2675096]
[1633109735092,104.0,159.39,159.28,418.6547921]
[1633109735291,2.40862331,159.37,159.23,0.02088]
[1633109735491,372.06190206,159.28,159.23,0.02088]
[1633109735694,387.59890206,159.28,159.23,0.02088]
[1633109735895,411.60462645,159.28,159.22,0.02088]
[1633109736093,387.59890206,159.28,159.18,9.17382195]
[1633109736492,387.59890206,159.28,159.17,43.14244693]
[1633109736891,387.59890206,159.28,159.17,46.42173413]
[1633109737094,387.59890206,159.28,159.17,44.92173413]
[1633109737295,387.59890206,159.28,159.17,23.40150789]
[1633109737494,387.59890206,159.28,159.18,413.26027337]
[1633109738097,387.59890206,159.28,159.19,2.13]
[1633109738298,372.06190206,159.28,159.19,2.15088]
[1633109739699,372.06190206,159.28,159.19,28.48832847]
[1633109740499,372.06190206,159.28,159.19,2.13]
[1633109742305,316.22340206,159.28,159.19,48.39148583]
[1633109742506,0.02088,159.41,159.28,124.69293504]
[1633109742703,2.13,159.43,159.28,124.69293504]
[1633109742704,0.02088,159.44,159.29,2.13]
[1633109742905,2.15088,159.48,159.3,0.67305063]
[1633109743103,30.21036022,159.47,159.31,2.13]
[1633109744705,30.21036022,159.47,159.31,28.46744847]